bitfinex-derivatives/quotes_BNBF0:USTF0_20250305
["timestamp","ask_amount","ask_price","bid_price","bid_amount"]
[1741151876724,0.31138688,590.99,589.63,1.25134261]
[1741151876930,2.08035371,590.98,589.8,1.76896683]
[1741151877129,2.08035371,590.98,589.21,2.59801053]
[1741151877130,0.31138688,590.97,589.58,1.25134261]
[1741151878829,0.3384381,590.95,589.58,1.25134261]
[1741151879031,0.31138688,590.94,589.58,1.25134261]
[1741151879233,0.33845529,590.92,589.58,1.25134261]
[1741151879427,0.31138688,590.91,589.59,1.76922164]
[1741151879633,0.33847247,590.89,589.58,1.25134261]
[1741151879934,0.31138688,590.88,589.59,1.76925163]
[1741151880134,0.64987571,590.87,589.59,1.76925163]
[1741151880330,0.64988143,590.86,589.59,1.76925163]
[1741151880532,0.64988716,590.85,589.59,1.76925163]
[1741151880834,0.64989289,590.84,589.59,1.76925163]
[1741151881035,0.64989862,590.83,589.59,1.76925163]
[1741151881229,0.64990435,590.82,589.59,1.76925163]
[1741151881432,0.64991008,590.81,589.59,1.76925163]
[1741151881633,0.64991581,590.8,589.59,1.76925163]
[1741151881830,0.64992154,590.79,589.59,1.76925163]
[1741151882135,0.33853549,590.78,589.59,1.76925163]
[1741151884139,0.31140288,590.77,589.59,1.76925163]
[1741151884337,0.33854695,590.76,589.59,1.76925163]
[1741151884541,0.31140288,590.75,589.59,1.76925163]
[1741151884740,0.33855841,590.74,589.59,1.76925163]
[1741151884940,0.31140288,590.73,589.59,1.76925163]
[1741151885140,0.64999655,590.72,589.59,1.76925163]
[1741151885340,0.65000228,590.71,589.59,1.76925163]
[1741151885535,0.65000228,590.71,588.72,2.59801053]
[1741151885536,0.65000801,590.7,589.16,1.25134261]
[1741151885841,0.33858707,590.69,589.59,1.76949902]
[1741151886244,0.33858707,590.69,589.18,0.33945483]
[1741151886443,0.31142836,590.68,589.59,1.76924413]
[1741151886642,0.33859854,590.67,589.18,0.33945483]
[1741151886843,0.31142836,590.66,589.18,0.33945483]
[1741151887143,0.33861,590.65,589.18,0.33945483]
[1741151887336,0.31141701,590.64,589.18,0.33945483]
[1741151887540,0.31141701,590.64,589.23,1.25134261]
[1741151888341,0.33862147,590.63,589.24,2.10923426]
[1741151888544,0.33862147,590.63,589.25,0.3394145]
[1741151890945,0.31142051,590.62,589.25,0.3394145]
[1741151891850,0.33862147,590.63,589.25,0.3394145]
[1741151905661,0.31141919,590.62,589.25,0.3394145]
[1741151905856,0.33863293,590.61,589.25,0.3394145]
[1741151906060,0.31141919,590.6,589.26,1.25134261]
[1741151906260,0.3386444,590.59,589.27,0.33940299]
[1741151907558,0.31141491,590.58,589.27,0.33940299]
[1741151908061,0.3386444,590.59,589.57,1.25134261]
[1741151911066,0.3386444,590.59,589.66,1.25134261]
[1741151913266,0.3386444,590.59,589.7,1.25134261]
[1741151917364,0.3386444,590.59,589.29,2.59801053]
[1741151917365,0.3386444,590.59,589.44,1.25134261]
[1741151919867,0.3386444,590.59,589.49,1.25134261]
[1741151921578,0.3386444,590.59,589.64,1.25134261]
[1741151923771,0.31146888,590.58,589.64,1.25134261]
[1741151923979,0.33865587,590.57,589.64,1.25134261]
[1741151924173,0.33865587,590.57,589.76,1.25134261]
[1741151925581,0.31147112,590.56,589.76,1.25134261]
[1741151925882,0.65013272,590.56,589.76,1.25134261]
[1741151926181,0.3386616,590.56,589.62,1.25134261]
[1741151926381,0.31147126,590.55,589.62,1.25134261]
[1741151926973,0.3386616,590.56,589.62,1.25134261]
[1741151930280,0.3386616,590.56,589.58,1.76935657]
[1741151930785,0.3386616,590.56,589.55,1.25134261]
[1741151930987,0.3386616,590.56,589.58,1.76946153]
[1741151933586,0.31145288,590.55,589.55,1.25134261]
[1741151934987,0.3386616,590.56,589.55,1.25134261]
[1741151935284,0.3386616,590.56,588.27,3.8154357]
[1741151935285,0.3386616,590.56,589.6,1.25134261]
[1741151937793,0.3386616,590.56,589.59,1.7693116]
[1741151937794,0.3386616,590.56,589.69,1.25134261]
[1741151939789,0.3386616,590.56,589.59,3.04180655]
[1741151939989,0.3386616,590.56,589.59,1.7693116]
[1741151942396,0.3386616,590.56,589.59,3.02065421]
[1741151942590,0.3386616,590.56,589.59,1.25134261]
[1741151942995,0.3386616,590.56,589.59,3.02037689]
[1741151945595,0.3386616,590.56,589.6,0.33921302]
[1741151947099,0.3386616,590.56,589.9,1.25134261]
[1741151949498,0.3386616,590.56,589.87,1.25134261]
[1741151951496,0.3386616,590.56,589.83,1.25134261]
[1741151953605,0.3386616,590.56,589.76,1.76869711]
[1741151954702,0.3386616,590.56,589.68,1.25134261]
[1741151954902,0.3386616,590.56,589.76,1.76880199]
[1741151955298,0.3386616,590.56,589.68,1.25134261]
[1741151956206,0.3386616,590.56,589.6,0.33921302]
[1741151957203,0.3386616,590.56,589.61,1.7687046]
[1741151957706,0.3386616,590.56,589.6,0.33921302]
[1741151958005,2.8735626,591.26,589.6,0.33921302]
[1741151958206,0.3382721,591.24,589.61,1.76872708]
[1741151958399,0.31126588,591.23,589.62,0.33920151]
[1741151958607,0.33828927,591.21,589.62,0.33920151]
[1741151958805,0.31126588,591.2,589.62,0.33920151]
[1741151959000,0.33830643,591.18,589.62,0.33920151]
[1741151959205,0.31126588,591.17,589.62,0.33920151]
[1741151959405,0.3383236,591.15,589.62,0.33920151]
[1741151959605,0.31126588,591.14,589.62,0.33920151]
[1741151959806,0.33834077,591.12,589.62,0.33920151]
[1741151960000,0.31126588,591.11,589.62,0.33920151]
[1741151960202,0.33835794,591.09,589.62,0.33920151]
[1741151960402,0.31126588,591.08,589.62,0.33920151]
[1741151960606,0.33836939,591.07,589.62,0.33920151]
[1741151960906,0.31126588,591.06,589.62,0.33920151]
[1741151961205,0.33838084,591.05,589.62,0.33920151]
[1741151961402,0.31126588,591.04,589.62,0.33920151]
[1741151961707,0.33839229,591.03,589.62,0.33920151]
[1741151961907,0.31126588,591.02,589.62,0.33920151]
[1741151962107,0.33840374,591.01,589.76,1.25134261]
[1741151962306,0.31126588,591.0,589.76,1.25134261]
[1741151962507,0.3384152,590.99,589.76,1.25134261]
[1741151962706,0.31126588,590.98,589.76,1.25134261]
[1741151962902,4.17001422,591.38,589.76,1.25134261]
[1741151962903,0.33842665,590.97,589.76,1.25134261]
[1741151963101,0.3112641,590.96,589.76,1.25134261]
[1741151963507,0.3384381,590.95,589.76,1.25134261]
[1741151963708,0.3112641,590.94,589.76,1.25134261]
[1741151963907,0.33844956,590.93,589.76,1.25134261]
[1741151964106,0.3112641,590.92,589.76,1.25134261]
[1741151964305,0.33846101,590.91,589.76,1.25134261]
[1741151964810,0.31126776,590.9,589.76,1.25134261]
[1741151965010,0.31126776,590.9,589.77,1.25134261]
[1741151965510,0.33846101,590.91,589.77,1.25134261]
[1741151966612,0.31126145,590.9,589.77,1.25134261]
[1741151968010,0.33846101,590.91,589.81,1.25134261]
[1741151968312,0.31126362,590.9,589.81,1.25134261]
[1741151969816,0.33846101,590.91,589.81,1.25134261]
[1741151970015,0.31126246,590.9,589.81,1.25134261]
[1741151970715,0.31126246,590.9,589.75,1.76876453]
[1741151970716,0.31126246,590.9,589.86,1.25134261]
[1741151972317,0.33847247,590.89,589.79,1.25134261]
[1741151972513,0.31126246,590.88,589.79,1.25134261]
[1741151972718,0.33848393,590.87,589.79,1.25134261]
[1741151973021,0.31126246,590.86,589.79,1.25134261]
[1741151973318,0.33849538,590.85,589.79,1.25134261]
[1741151973514,0.31126246,590.84,589.79,1.25134261]
[1741151973716,0.33850684,590.83,589.79,1.25134261]
[1741151973914,0.31126246,590.82,589.79,1.25134261]
[1741151974119,0.3385183,590.81,589.79,1.25134261]
[1741151974323,0.31126246,590.8,589.79,1.25134261]
[1741151974524,0.33852976,590.79,589.79,1.25134261]
[1741151974728,0.31126246,590.78,589.79,1.25134261]
[1741151975024,0.31126246,590.78,589.89,1.25134261]
[1741151975025,0.33854122,590.77,589.89,1.25134261]
[1741151975223,0.31126246,590.76,589.89,1.25134261]
[1741151975418,0.33855268,590.75,589.89,1.25134261]
[1741151975617,0.31126246,590.74,589.89,1.25134261]
[1741151976727,0.31126246,590.74,589.81,3.04155171]
[1741151976728,0.31126246,590.74,589.86,1.25134261]
[1741151977922,0.33855268,590.75,589.86,1.25134261]
[1741151978721,0.33855268,590.75,589.96,1.25134261]
[1741151980228,0.33855268,590.75,590.0,1.25134261]
[1741151982629,0.33855268,590.75,589.83,1.76858475]
[1741151982630,0.33855268,590.75,589.91,1.25134261]
[1741151985530,0.33855268,590.75,589.9,1.25134261]
[1741151987832,0.33855268,590.75,589.97,1.25134261]
[1741151990234,0.33855268,590.75,590.01,1.25134261]
[1741151992034,0.33855268,590.75,590.1,1.25134261]
[1741151994232,0.33855268,590.75,590.09,1.25134261]
[1741151996341,0.33855268,590.75,590.1,1.25134261]
[1741151998854,0.33855268,590.75,590.0,1.25134261]
[1741152000047,2.63543188,591.2,590.0,1.25134261]
[1741152000251,2.97373259,591.19,590.0,1.25134261]
[1741152000552,2.87155103,591.18,590.0,1.25134261]
[1741152000753,0.9672798,591.17,590.0,1.25134261]
[1741152000953,0.33831788,591.16,590.0,1.25134261]
[1741152001454,0.33831788,591.16,590.13,1.25134261]
[1741152003449,0.33831788,591.16,590.12,1.25134261]
[1741152005455,0.33831788,591.16,590.06,1.25134261]
[1741152007455,0.33831788,591.16,590.04,1.76802317]
[1741152008649,0.33831788,591.16,590.01,1.25134261]
[1741152009055,0.33831788,591.16,590.04,1.768113]
[1741152011758,0.33831788,591.16,590.01,1.25134261]
[1741152012060,0.33831788,591.16,590.04,1.76802317]
[1741152014759,0.33831788,591.16,590.08,1.25134261]
[1741152016358,0.33831788,591.16,590.13,1.25134261]
[1741152017866,0.31117453,591.15,590.13,1.25134261]
[1741152018061,0.33832932,591.14,590.13,1.25134261]
[1741152018365,0.31117453,591.13,590.13,1.25134261]
[1741152019366,0.31117453,591.13,590.08,1.76801568]
[1741152020667,0.31117453,591.13,590.05,1.25134261]
[1741152020868,0.31117453,591.13,590.08,1.76801568]
[1741152022663,0.31117453,591.13,590.21,1.25134261]
[1741152024364,0.31117453,591.13,590.13,1.7678585]
[1741152026767,0.31117453,591.13,590.0,1.25134261]
[1741152026968,0.31117453,591.13,590.13,1.76799323]
[1741152027267,0.31117453,591.13,590.0,1.25134261]
[1741152027866,0.31117453,591.13,590.01,1.76809054]
[1741152028272,0.33834077,591.12,590.01,1.76809054]
[1741152028671,0.33834077,591.12,590.22,1.25134261]
[1741152030372,0.33834077,591.12,590.16,1.25134261]
[1741152031973,0.33834077,591.12,590.21,1.25134261]
[1741152034278,0.33834077,591.12,590.16,1.25134261]
[1741152036373,0.33834077,591.12,590.12,1.76815791]
[1741152038677,0.33834077,591.12,589.95,1.25134261]
[1741152038875,0.33834077,591.12,590.12,1.76820284]
[1741152039283,0.33834077,591.12,589.94,1.25134261]
[1741152039983,0.33834077,591.12,589.95,1.76833761]
[1741152041586,0.33834077,591.12,590.02,1.25134261]
[1741152043689,0.33834077,591.12,590.13,1.25134261]
[1741152045588,0.33834077,591.12,590.1,1.25134261]
[1741152047386,0.33834077,591.12,590.09,1.25134261]
[1741152049388,0.33834077,591.12,590.04,1.7682253]
[1741152049389,0.33834077,591.12,590.14,1.25134261]
[1741152051592,0.33834077,591.12,590.13,1.25134261]
[1741152053393,0.33834077,591.12,590.08,3.01938075]
[1741152055996,0.33834077,591.12,590.18,1.25134261]
[1741152058395,0.33834077,591.12,590.14,1.25134261]
[1741152060596,0.33834077,591.12,590.13,1.76814294]
[1741152064700,0.33834077,591.12,590.21,1.25134261]
[1741152066801,0.33834077,591.12,590.19,1.25134261]
[1741152068299,2.97411048,591.12,590.19,1.25134261]
[1741152068503,4.17952317,591.12,590.19,1.25134261]
[1741152068700,0.96742735,591.11,590.19,1.25134261]
[1741152068897,0.33835222,591.1,590.19,1.25134261]
[1741152069704,0.33835222,591.1,590.17,1.25134261]
[1741152072008,0.33835222,591.1,590.14,1.76813546]
[1741152073203,0.31117453,591.09,590.14,1.76813546]
[1741152073401,0.33836367,591.08,590.14,1.76813546]
[1741152073605,0.31117453,591.07,590.14,1.76813546]
[1741152073803,0.33837512,591.06,590.14,1.76813546]
[1741152074003,0.31117453,591.05,590.14,1.76813546]
[1741152074208,0.33838657,591.04,590.14,1.76813546]
[1741152074408,0.31117453,591.03,590.14,1.76813546]
[1741152074809,0.31123127,591.02,589.95,1.25134261]
[1741152075009,0.33838657,591.04,590.14,1.7682253]
[1741152075308,0.33838657,591.04,589.95,1.25134261]
[1741152075509,0.33838657,591.04,590.14,1.76808305]
[1741152075710,0.33838657,591.04,589.95,1.25134261]
[1741152076504,0.33838657,591.04,589.94,1.25134261]
[1741152078809,0.33838657,591.04,589.27,2.58832617]
[1741152078810,0.33838657,591.04,590.05,1.25134261]
[1741152079610,0.31121698,591.03,590.05,1.25134261]
[1741152081011,0.31121238,591.02,590.06,1.76829268]
[1741152081208,0.31121238,591.01,590.06,1.76829268]
[1741152081408,0.31121238,591.0,590.15,1.25134261]
[1741152081610,0.31121238,590.99,590.15,1.25134261]
[1741152081811,0.31121238,591.03,590.15,1.25134261]
[1741152082110,0.31121238,591.02,590.15,1.25134261]
[1741152082311,0.33838657,591.04,590.15,1.25134261]
[1741152082704,0.31119868,591.03,590.15,1.25134261]
[1741152084110,0.3111974,591.02,590.29,1.25134261]
[1741152084309,0.3111974,591.03,590.29,1.25134261]
[1741152084509,0.33838657,591.04,590.29,1.25134261]
[1741152084710,0.31119933,591.03,590.29,1.25134261]
[1741152087408,0.33838657,591.04,590.29,1.25134261]
[1741152087610,0.31119748,591.03,590.29,1.25134261]
[1741152089017,0.31119766,591.02,590.29,1.25134261]
[1741152089417,0.31119766,591.03,590.29,1.25134261]
[1741152089617,0.31119766,591.02,590.21,1.25134261]
[1741152089817,0.31119766,591.03,590.21,1.25134261]
[1741152090019,0.31119766,591.02,590.21,1.25134261]
[1741152090316,0.31119766,591.01,590.21,1.25134261]
[1741152090515,0.31119766,591.0,590.21,1.25134261]
[1741152090720,0.31119766,591.03,590.21,1.25134261]
[1741152091920,0.31119766,591.03,590.17,1.25134261]
[1741152093720,0.33838657,591.04,590.17,1.25134261]
[1741152094628,0.33838657,591.04,590.19,1.25134261]
[1741152096125,0.33389694,591.04,590.19,1.25134261]
[1741152096327,0.33389694,591.04,590.28,1.25134261]
[1741152098330,0.33389694,591.04,590.27,1.25134261]
[1741152100226,0.33389694,591.04,590.24,1.25134261]
[1741152102233,0.33389694,591.04,590.2,1.76728242]
[1741152104436,0.33389694,591.04,590.2,3.01862503]
[1741152107340,0.33389694,591.04,590.24,1.25134261]
[1741152109536,0.33389694,591.04,590.22,1.76748438]
[1741152110742,0.33389694,591.04,590.0,1.25134261]
[1741152110938,0.33389694,591.04,590.22,1.76755919]
[1741152111243,0.33389694,591.04,590.0,1.25134261]
[1741152111445,0.33389694,591.04,590.22,1.76755919]
[1741152111840,0.33389694,591.04,590.02,1.25134261]
[1741152112043,0.31116265,591.03,590.02,1.25134261]
[1741152112346,0.31116265,591.03,590.03,1.76779863]
[1741152112644,0.33389694,591.04,590.03,1.76779863]
[1741152113340,0.33389694,591.04,590.04,1.25134261]
[1741152116146,0.33389694,591.04,590.22,1.25134261]
[1741152116840,0.31116944,591.03,590.22,1.25134261]
[1741152117042,0.33389694,591.04,590.22,1.25134261]
[1741152117242,0.31116819,591.03,590.22,1.25134261]
[1741152118150,0.31116819,591.03,590.24,1.25134261]
[1741152118942,0.33389694,591.04,590.24,1.25134261]
[1741152119147,0.31118727,591.02,590.24,1.25134261]
[1741152119346,0.31118727,591.01,590.24,1.25134261]
[1741152119547,0.31118727,591.03,590.24,1.25134261]
[1741152121049,0.31118727,591.03,590.22,1.25134261]
[1741152122947,0.33389694,591.04,590.12,1.76819535]
[1741152124147,0.3112541,591.03,590.12,1.76819535]
[1741152124649,0.33389694,591.04,590.12,1.76819535]
[1741152125846,0.33389694,591.04,589.69,1.25134261]
[1741152126446,0.33389694,591.04,589.7,1.76833761]
[1741152128854,0.33389694,591.04,589.69,1.25134261]
[1741152130153,0.33389694,591.04,590.12,1.25134261]
[1741152130451,0.31119176,591.03,590.12,1.25134261]
[1741152133047,0.31119176,591.03,589.71,2.58832617]
[1741152133048,0.31117966,591.02,590.16,1.25134261]
[1741152133247,0.31117966,591.03,590.16,1.25134261]
[1741152133453,0.31117966,591.02,590.16,1.25134261]
[1741152133754,0.31117966,591.01,590.16,1.25134261]
[1741152133950,0.31117966,591.0,590.16,1.25134261]
[1741152134149,0.31117966,591.03,590.16,1.25134261]
[1741152134347,0.31117966,591.02,590.16,1.25134261]
[1741152134548,0.31118012,591.01,590.16,1.25134261]
[1741152134855,0.31118012,591.0,590.16,1.25134261]
[1741152135052,0.33389694,591.04,590.16,1.25134261]
[1741152137153,0.33389694,591.04,590.1,1.25134261]
[1741152139662,0.33389694,591.04,590.08,1.25134261]
[1741152142061,0.33389694,591.04,590.13,1.25134261]
[1741152142258,0.31119869,591.03,590.13,1.25134261]
[1741152143564,0.33839802,591.02,590.13,1.25134261]
[1741152143765,0.31119869,591.01,590.13,1.25134261]
[1741152143966,0.31119869,591.01,590.01,1.76788844]
[1741152143967,0.31119869,591.01,590.17,1.25134261]
[1741152145465,0.3112321,591.0,590.17,1.25134261]
[1741152145662,0.3112321,591.01,590.17,1.25134261]
[1741152145859,0.3112321,591.0,590.17,1.25134261]
[1741152146061,0.3112321,591.01,590.17,1.25134261]
[1741152146265,0.3112321,591.01,590.16,1.25134261]
[1741152146865,0.33839802,591.02,590.16,1.25134261]
[1741152147162,0.31121781,591.01,590.16,1.25134261]
[1741152148463,0.31121781,591.01,590.09,1.27249495]
[1741152148464,0.31121781,591.01,590.19,1.25134261]
[1741152149970,0.31120306,591.0,590.19,1.25134261]
[1741152150170,0.31120306,591.01,590.19,1.25134261]
[1741152150369,0.31120306,591.0,590.25,1.25134261]
[1741152150568,0.31120306,590.99,590.25,1.25134261]
[1741152150769,0.31120306,590.98,590.25,1.25134261]
[1741152150969,0.31120306,590.97,590.25,1.25134261]
[1741152151164,0.31120306,591.01,590.25,1.25134261]
[1741152151369,0.31120306,591.0,590.25,1.25134261]
[1741152151570,0.31120306,591.01,590.25,1.25134261]
[1741152151770,0.33839802,591.02,590.25,1.25134261]
[1741152152072,0.31121174,591.01,590.25,1.25134261]
[1741152152268,0.31121174,591.01,590.22,1.25134261]
[1741152153169,0.64961548,591.01,590.22,1.25134261]
[1741152153370,0.31121174,591.0,590.22,1.25134261]
[1741152154569,0.3384152,590.99,590.22,1.25134261]
[1741152154873,0.3384152,590.99,587.54,2.13702542]
[1741152154874,0.31121174,590.98,590.2,1.25134261]
[1741152155073,0.33842665,590.97,590.2,1.25134261]
[1741152155267,0.31121174,590.96,590.2,1.25134261]
[1741152155470,0.3384381,590.95,590.2,1.25134261]
[1741152155666,0.31121174,590.94,590.2,1.25134261]
[1741152155874,0.3384381,590.95,590.2,1.25134261]
[1741152156075,0.31124162,590.94,590.2,1.25134261]
[1741152157574,0.31124162,590.94,590.1,1.25134261]
[1741152158574,0.3384381,590.95,590.1,1.25134261]
[1741152158779,0.31124038,590.94,590.1,1.25134261]
[1741152159784,0.64968421,590.94,590.08,3.01980004]
[1741152159984,0.31124038,590.93,590.08,3.01980004]
[1741152161883,0.31124038,590.93,590.08,1.25134261]
[1741152162490,0.31124038,590.93,590.04,1.76849487]
[1741152164789,0.31124038,590.93,589.99,1.25134261]
[1741152165090,0.31124038,590.93,590.04,1.76852483]
[1741152166191,0.33844383,590.94,590.04,1.76852483]
[1741152166387,0.31126133,590.93,590.04,1.76852483]
[1741152167188,0.33844383,590.94,590.04,1.76852483]
[1741152167392,0.31128131,590.93,590.04,1.76852483]
[1741152167795,0.31128131,590.93,589.96,1.25134261]
[1741152168697,0.33845529,590.92,590.05,1.25134261]
[1741152168996,0.31128131,590.91,590.05,1.25134261]
[1741152169191,0.33846674,590.9,590.05,1.25134261]
[1741152169391,0.31128131,590.89,590.05,1.25134261]
[1741152170497,0.33846674,590.9,590.05,1.25134261]
[1741152170693,0.31128724,590.89,590.05,1.25134261]
[1741152171297,0.31128683,590.88,590.05,1.25134261]
[1741152171495,0.31128683,590.89,590.02,1.25134261]
[1741152171698,0.31128683,590.88,590.02,1.25134261]
[1741152171998,0.31128683,590.87,590.02,1.25134261]
[1741152172198,0.31128683,590.86,590.02,1.25134261]
[1741152172400,0.3112885,590.85,590.02,1.25134261]
[1741152172601,0.33846674,590.9,590.02,1.25134261]
[1741152172892,0.31131293,590.89,590.02,1.25134261]
[1741152173102,0.3384782,590.88,590.02,1.25134261]
[1741152173296,0.31131293,590.87,590.02,1.25134261]
[1741152173498,0.33848965,590.86,590.02,1.25134261]
[1741152173699,0.31131293,590.85,590.02,1.25134261]
[1741152173996,0.33848965,590.86,590.01,1.25134261]
[1741152174202,0.31131421,590.85,590.01,1.25134261]
[1741152174402,0.33850111,590.84,590.01,1.25134261]
[1741152177401,0.33850111,590.84,589.82,1.25134261]
[1741152177600,0.33850111,590.84,589.96,1.76852483]
[1741152177797,0.33850111,590.84,589.82,1.25134261]
[1741152177998,0.33850111,590.84,589.96,1.76846492]
[1741152178496,0.33850111,590.84,589.96,1.76847241]
[1741152179706,0.33850111,590.84,589.83,1.25134261]
[1741152180106,0.31130901,590.83,589.96,1.76850236]
[1741152180405,0.31130901,590.83,589.83,1.25134261]
[1741152180707,0.31130901,590.83,589.84,1.76860722]
[1741152182104,0.31130898,590.82,589.84,1.76860722]
[1741152182301,0.31130898,590.83,589.84,1.76860722]
[1741152182506,0.31130898,590.82,589.84,1.76860722]
[1741152182701,0.31130898,590.81,589.84,1.76860722]
[1741152182905,0.31130898,590.8,589.82,1.25134261]
[1741152183101,0.31130898,590.83,589.84,1.76882447]
[1741152184806,0.31130898,590.83,589.95,1.25134261]
[1741152186407,0.31130898,590.83,589.88,1.76874206]
[1741152186408,0.31130898,590.83,589.97,1.25134261]
[1741152188407,0.31130898,590.83,590.0,1.25134261]
[1741152189005,0.31130487,590.82,590.0,1.25134261]
[1741152189308,0.33850111,590.84,590.0,1.25134261]
[1741152190612,0.31125683,590.83,590.0,1.25134261]
[1741152191519,0.31125683,590.83,590.13,1.25134261]
[1741152193608,0.31125683,590.83,590.15,1.25134261]
[1741152194017,0.311254,590.82,590.15,1.25134261]
[1741152194317,0.33850111,590.84,590.15,1.25134261]
[1741152194507,0.311254,590.83,590.15,1.25134261]
[1741152195114,0.33850111,590.84,590.14,1.25134261]
[1741152197715,0.33850111,590.84,590.02,1.76850236]
[1741152197917,0.33850111,590.84,590.01,1.25134261]
[1741152198216,0.33850111,590.84,590.04,1.76825525]
[1741152200817,0.33850111,590.84,589.97,1.25134261]
[1741152201014,0.33850111,590.84,590.04,1.76825525]
[1741152201211,0.33850111,590.84,589.97,1.25134261]
[1741152201517,0.33850111,590.84,590.04,1.76827022]
[1741152201811,0.33850111,590.84,589.97,1.25134261]
[1741152202018,0.33850111,590.84,590.04,1.76827022]
[1741152202216,0.33850111,590.84,589.97,1.25134261]
[1741152202617,0.33850111,590.84,590.04,1.7682852]
[1741152202819,0.33850111,590.84,589.94,1.25134261]
[1741152204021,0.33850111,590.84,589.95,1.76839003]
[1741152205521,0.3112922,590.83,589.95,1.76839003]
[1741152206715,0.33850111,590.84,589.94,1.25134261]
[1741152206921,0.31129377,590.83,589.94,1.25134261]
[1741152207124,0.31129377,590.83,589.95,1.76874206]
[1741152207823,0.33850111,590.84,589.95,1.76874206]
[1741152208020,0.31132728,590.83,589.95,1.76874206]
[1741152208221,0.64983412,590.83,589.95,1.76874206]
[1741152208426,0.31132728,590.82,590.03,1.25134261]
[1741152208625,0.3385183,590.81,590.03,1.25134261]
[1741152208826,0.31132728,590.8,590.03,1.25134261]
[1741152209024,0.64985131,590.8,590.03,1.25134261]
[1741152209221,0.33852403,590.8,590.03,1.25134261]
[1741152209526,0.31133267,590.79,590.03,1.25134261]
[1741152211231,0.31133267,590.79,589.98,1.25134261]
[1741152213034,0.33853549,590.78,589.98,1.25134261]
[1741152213231,0.33853549,590.78,589.92,1.25134261]
[1741152213927,0.31139167,590.77,589.92,1.25134261]
[1741152214131,0.33854695,590.76,589.92,1.25134261]
[1741152214332,0.31139167,590.75,589.92,1.25134261]
[1741152214634,0.33855841,590.74,589.92,1.25134261]
[1741152214837,0.31139167,590.73,589.92,1.25134261]
[1741152215132,0.33856988,590.72,589.92,1.25134261]
[1741152215431,0.31139167,590.71,589.92,1.25134261]
[1741152215637,0.33858134,590.7,589.92,1.25134261]
[1741152216134,0.33858134,590.7,589.84,1.25134261]
[1741152216930,0.33858134,590.7,589.84,3.02030944]
[1741152217733,0.33858134,590.7,589.84,1.76896683]
[1741152218134,0.3113904,590.69,589.84,1.76896683]
[1741152218933,0.3113904,590.69,589.68,0.339167]
[1741152219131,0.3113904,590.69,589.84,1.76921415]
[1741152219332,0.3113904,590.69,589.68,0.339167]
[1741152219527,0.3113904,590.69,589.84,1.76921415]
[1741152219737,0.3113904,590.69,589.68,0.339167]
[1741152220036,0.33858134,590.7,589.77,1.25134261]
[1741152220733,0.3114004,590.69,589.77,1.25134261]
[1741152221928,0.31139897,590.68,589.77,1.25134261]
[1741152222129,0.31139897,590.67,589.78,1.76926662]
[1741152222435,0.31139897,590.66,589.78,1.76926662]
[1741152222631,0.31139671,590.65,589.78,1.76926662]
[1741152222835,0.31139671,590.69,589.78,1.76926662]
[1741152223135,0.31139671,590.68,589.78,1.76926662]
[1741152223329,0.31139671,590.67,589.78,1.76926662]
[1741152223529,0.31139671,590.69,589.78,1.76926662]
[1741152223833,0.33858134,590.7,589.68,0.339167]
[1741152224034,1.76964899,590.68,589.65,1.25134261]
[1741152224335,0.33860427,590.66,589.65,1.25134261]
[1741152225135,0.33860427,590.66,589.59,1.25134261]
[1741152225933,0.33860427,590.66,589.6,1.76977649]
[1741152227834,0.33860427,590.66,589.1,1.25134261]
[1741152228138,0.33860427,590.66,589.6,1.76976899]
[1741152228341,0.33860427,590.66,589.11,0.33949517]
[1741152230140,0.33860427,590.66,589.13,1.25134261]
[1741152230336,0.33860427,590.66,589.14,0.33947788]
[1741152231142,0.33860427,590.66,589.15,1.77012157]
[1741152231341,0.33860427,590.66,589.16,0.33946635]
[1741152231738,0.3115306,590.65,589.16,0.33946635]
[1741152231938,0.33861573,590.64,589.16,0.33946635]
[1741152232341,0.31152523,590.63,589.16,0.33946635]
[1741152232542,0.3386272,590.62,589.16,0.33946635]
[1741152232743,0.3386272,590.62,589.16,1.59080896]
[1741152232942,0.31152523,590.61,589.16,1.59080896]
[1741152233143,0.33863867,590.6,589.16,1.59080896]
[1741152233442,0.31152523,590.59,589.16,1.59080896]
[1741152233643,0.33865014,590.58,589.16,1.59080896]
[1741152233845,0.31152523,590.57,589.16,1.59080896]
[1741152234043,0.3386616,590.56,589.16,1.59080896]
[1741152234238,0.31152523,590.55,589.16,1.59080896]
[1741152234439,0.33867307,590.54,589.16,1.59080896]
[1741152234641,0.31152523,590.53,589.16,1.59080896]
[1741152234841,0.33868454,590.52,589.16,1.59080896]
[1741152235044,0.31152523,590.51,589.16,1.59080896]
[1741152235243,0.33869602,590.5,589.16,1.59080896]
[1741152235441,0.31152523,590.49,589.16,1.59080896]
[1741152235645,0.33870749,590.48,589.16,1.59080896]
[1741152235848,0.31152523,590.47,589.16,1.59080896]
[1741152236047,0.33871896,590.46,589.16,1.59080896]
[1741152236252,0.31152523,590.45,589.16,1.59080896]
[1741152236643,0.31152523,590.45,589.16,0.33946635]
[1741152244161,0.31152523,590.45,589.28,1.25134261]
[1741152244363,0.33873043,590.44,589.28,1.25134261]
[1741152244563,0.31152523,590.43,589.28,1.25134261]
[1741152244863,0.33874191,590.42,589.28,1.25134261]
[1741152245063,0.31152523,590.41,589.28,1.25134261]